fUST/lending_fUST_20240709
["ID","MTS","AMOUNT","RATE_DAILY","PERIOD"]
[331569720,1720521048427,-842.29,0.00043013,30]
[331569721,1720521048436,-6274.77,0.00043013,30]
[331569722,1720521048445,-1147.72,0.00043013,30]
[331569723,1720521048455,-500.0,0.00043013,30]
[331569724,1720521048464,-543.48,0.00043013,30]
[331569725,1720521048514,-500.0,0.00043013,30]
[331569726,1720521048528,-853.88,0.00043013,30]
[331569727,1720521048536,-500.0,0.00043013,2]
[331569728,1720521048546,-558.39,0.00043013,30]
[331569729,1720521048555,-500.0,0.00043013,30]
[331569730,1720521048564,-811.27,0.00043013,30]
[331569731,1720521048573,-500.0,0.00043013,30]
[331569732,1720521048582,-519.74848284,0.00043013,30]
[331569733,1720521048591,-500.0,0.00043013,30]
[331569734,1720521048601,-500.0,0.00043013,30]
[331569735,1720521048610,-500.0,0.00043013,30]
[331569736,1720521048619,-500.0,0.00043013,30]
[331569737,1720521048629,-500.0,0.00043013,30]
[331569738,1720521048638,-500.0,0.00043013,30]
[331569739,1720521048647,-500.0,0.00043013,30]
[331569740,1720521048657,-1811.68,0.00043013,30]
[331569741,1720521048666,-500.0,0.00043013,30]
[331569742,1720521048675,-473.52347919,0.00043013,30]
[331569743,1720521048685,-598.49599386,0.00043013,30]
[331569744,1720521048695,-595.77,0.00043013,30]
[331569745,1720521048707,-712.38,0.00043013,30]
[331569746,1720521048716,-3653.85,0.00043013,30]
[331569747,1720521048726,-500.0,0.00043013,30]
[331569748,1720521048736,-791.87,0.00043013,30]
[331569749,1720521048747,-1055.1,0.00043013,30]
[331569750,1720521048756,-883.43,0.00043013,30]
[331569751,1720521048766,-500.0,0.00043013,30]
[331569752,1720521048777,-6436.66,0.00043013,7]
[331569753,1720521048787,-500.0,0.00043013,30]
[331569754,1720521048797,-500.0,0.00043013,30]
[331569755,1720521048807,-500.0,0.00043013,30]
[331569756,1720521048817,-827.15,0.00043013,30]
[331569757,1720521048827,-827.08,0.00043013,30]
[331569758,1720521048837,-4659.11,0.00043013,30]
[331569759,1720521048845,-965.2,0.00043013,30]
[331569760,1720521048854,-729.71,0.00043013,30]
[331569761,1720521048863,-500.0,0.00043013,30]
[331569762,1720521048872,-728.78,0.00043013,30]
[331569763,1720521048882,-621.72,0.00043013,30]
[331569764,1720521048901,-1163.1,0.00043013,30]
[331569765,1720521048918,-1246.99,0.00043013,30]
[331569766,1720521048936,-500.0,0.00043013,30]
[331569767,1720521048956,-589.23,0.00043013,30]
[331569768,1720521048977,-886.16,0.00043013,30]
[331569769,1720521048995,-11363.55,0.00043013,30]
[331569770,1720521049013,-500.0,0.00043013,30]
[331569771,1720521049028,-1718.08,0.00043013,30]
[331569772,1720521049043,-500.0,0.00043013,30]
[331569773,1720521049060,-2626.43,0.00043013,30]
[331569774,1720521049081,-717.09,0.00043013,30]
[331569775,1720521049096,-500.0,0.00043013,30]
[331569776,1720521049111,-500.0,0.00043013,30]
[331569777,1720521049128,-500.0,0.00043013,30]
[331569778,1720521049142,-516.05533305,0.00043013,2]
[331569779,1720521049157,-1010.58,0.00043013,30]
[331569780,1720521049171,-1027.29,0.00043013,30]
[331569781,1720521049186,-500.0,0.00043013,30]
[331569782,1720521049200,-2129.39,0.00043013,30]
[331569783,1720521049214,-500.0,0.00043013,30]
[331569784,1720521049227,-1478.19,0.00043013,30]
[331569785,1720521049241,-500.0,0.00043013,30]
[331569786,1720521049254,-153.20766236,0.0004319,60]
[331569787,1720521049268,-175.3,0.00043257,31]
[331569788,1720521049282,-436.29299095,0.00043287,4]
[331569789,1720521049295,-718.63,0.00043287,30]
[331569790,1720521049309,-707.09,0.00043287,30]
[331569791,1720521049322,-553.27,0.00043287,30]
[331569792,1720521049336,-740.56,0.00043287,30]
[331569793,1720521049349,-500.0,0.00043287,30]
[331569794,1720521049363,-500.0,0.00043287,30]
[331569795,1720521049377,-500.0,0.00043287,30]
[331569796,1720521049391,-868.9,0.00043287,30]
[331569797,1720521049404,-500.0,0.00043287,30]
[331569798,1720521049417,-500.0,0.00043287,30]
[331569799,1720521049427,-565.11,0.00043287,30]
[331569800,1720521049437,-597.15,0.00043287,30]
[331569801,1720521049446,-500.0,0.00043287,30]
[331569802,1720521049543,-500.0,0.00043287,30]
[331569803,1720521049553,-500.0,0.00043287,30]
[331569804,1720521049562,-618.82,0.00043287,30]
[331569805,1720521049572,-842.29,0.00043287,30]
[331569806,1720521049582,-6274.77,0.00043287,30]
[331569807,1720521049591,-1147.72,0.00043287,30]
[331569808,1720521049600,-500.0,0.00043287,30]
[331569809,1720521049610,-543.48,0.00043287,30]
[331569810,1720521049619,-500.0,0.00043287,30]
[331569811,1720521049629,-853.88,0.00043287,30]
[331569812,1720521049638,-500.0,0.00043287,2]
[331569813,1720521049647,-558.39,0.00043287,30]
[331569814,1720521049656,-500.0,0.00043287,30]
[331569815,1720521049666,-313.18505705,0.00043287,7]
[331569816,1720521049675,-811.27,0.00043287,30]
[331569817,1720521049684,-500.0,0.00043287,30]
[331569818,1720521049693,-500.0,0.00043287,30]
[331569819,1720521049703,-564.79483299,0.00043287,30]
[331569820,1720521049713,-500.0,0.00043287,30]
[331569821,1720521049722,-500.0,0.00043287,30]
[331569822,1720521049731,-500.0,0.00043287,30]
[331569823,1720521049740,-500.0,0.00043287,30]
[331569824,1720521049750,-500.0,0.00043287,30]
[331569825,1720521049759,-1811.68,0.00043287,30]
[331569826,1720521049768,-500.0,0.00043287,30]
[331569827,1720521049777,-595.77,0.00043287,30]
[331569828,1720521049790,-712.38,0.00043287,30]
[331569829,1720521049800,-3653.85,0.00043287,30]
[331569830,1720521049809,-500.0,0.00043287,30]
[331569831,1720521049818,-791.87,0.00043287,30]
[331569832,1720521049827,-1055.1,0.00043287,30]
[331569833,1720521049836,-883.43,0.00043287,30]
[331569834,1720521049845,-500.0,0.00043287,30]
[331569835,1720521049855,-1091.60799921,0.00043287,7]
[331569845,1720521442543,7526.02582033,0.00015,2]
[331569849,1720521579372,154.85288975,0.00014999,2]
[331569852,1720521723128,1508.10961278,0.00014999,4]
[331569858,1720521817964,1587.66604664,0.00014999,2]
[331569872,1720522219382,1416.0192649,0.00014999,2]
[331570071,1720522238170,-166.666666,0.00018289,2]
[331570072,1720522238179,-300.0,0.00018476,2]
[331570073,1720522238188,-300.0,0.00018476,2]
[331570074,1720522238198,-17499.325581,0.00018477,2]
[331570075,1720522238208,-667.684074,0.00018787,2]
[331570076,1720522238217,-166.666666,0.00018788,2]
[331570077,1720522238227,-2059.337425,0.000189,2]
[331570078,1720522238235,-2241.10769768,0.00019074,4]
[331570079,1720522238244,-166.666666,0.00019287,2]
[331570080,1720522238254,-166.666666,0.00019785,2]
[331570081,1720522238263,-3902.8144794,0.00019899,2]
[331570082,1720522238272,-283.15718318,0.00019899,2]
[331570083,1720522238281,-460.73,0.0001998,3]
[331570084,1720522238290,-460.73,0.0001998,3]
[331570085,1720522238300,-396.86262553,0.00019989,2]
[331570086,1720522238309,-31802.03756449,0.0001999,2]
[331570087,1720522238321,-87631.05474719,0.0001999,2]
[331570089,1720522238336,-8377.54254476,0.0001999,2]
[331570091,1720522238347,-9772.49834656,0.0001999,2]
[331570092,1720522238356,-393.0134264,0.00019999,2]
[331570093,1720522238366,-174.05491823,0.00019999,2]
[331570094,1720522238376,-500.0,0.00019999,2]
[331570095,1720522238385,-225.05120165,0.00019999,2]
[331570096,1720522238395,-500.0,0.00019999,2]
[331570097,1720522238405,-500.0,0.00019999,2]
[331570098,1720522238414,-250.0,0.00019999,2]
[331570099,1720522238423,-500.0,0.00019999,2]
[331570100,1720522238433,-500.0,0.00019999,2]
[331570101,1720522238442,-500.0,0.00019999,2]
[331570102,1720522238451,-500.0,0.00019999,2]
[331570103,1720522238461,-500.0,0.00019999,2]
[331570104,1720522238471,-500.0,0.00019999,2]
[331570105,1720522238480,-500.0,0.00019999,2]
[331570106,1720522238489,-500.0,0.00019999,2]
[331570107,1720522238498,-500.0,0.00019999,2]
[331570108,1720522238507,-493.30173199,0.00019999,2]
[331570109,1720522238516,-407.43195365,0.00019999,2]
[331570110,1720522238525,-500.0,0.00019999,2]
[331570111,1720522238536,-500.0,0.00019999,2]
[331570112,1720522238544,-500.0,0.00019999,2]
[331570113,1720522238554,-500.0,0.00019999,2]
[331570114,1720522238563,-500.0,0.00019999,2]
[331570115,1720522238573,-579.08900039,0.00019999,2]
[331570116,1720522238582,-500.0,0.00019999,2]
[331570117,1720522238591,-495.31121239,0.00019999,2]
[331570118,1720522238600,-500.0,0.00019999,2]
[331570119,1720522238609,-157.53584115,0.00019999,2]
[331570120,1720522238618,-21004.02252795,0.0002,2]
[331570121,1720522238628,-52946.73685478,0.0002,2]
[331570122,1720522238637,-4855.00134939,0.0002,2]
[331570123,1720522238645,-4272.70076566,0.0002,2]
[331570124,1720522238654,-49117.796117,0.0002,2]
[331570125,1720522238663,-6207.88017944,0.0002,2]
[331570126,1720522238672,-153.95020535,0.0002,2]
[331570127,1720522238681,-300.0,0.00020149,2]
[331570128,1720522238758,-166.666666,0.00020284,2]
[331570129,1720522238768,-394.71157965,0.000203,2]
[331570130,1720522238777,-166.666666,0.00020782,2]
[331570131,1720522238787,-257.48286569,0.00021,2]
[331570132,1720522238796,-10104.88919973,0.00021,2]
[331570133,1720522238806,-232.14265427,0.00021,2]
[331570134,1720522238815,-750.0,0.00021096,2]
[331570135,1720522238825,-222.86799845,0.000212,2]
[331570136,1720522238834,-921.46,0.0002135,3]
[331570137,1720522238843,-921.46,0.0002135,3]
[331570138,1720522238853,-68791.5666017,0.00021729,3]
[331570139,1720522238862,-3902.81447938,0.00021739,2]
[331570140,1720522238871,-150.47620585,0.000219,2]
[331570141,1720522238881,-10858.66581753,0.0002225,2]
[331570142,1720522238890,-1308.5658289,0.000223,2]
[331570143,1720522238899,-151.44589054,0.000224,2]
[331570144,1720522238909,-238.61153286,0.00023,2]
[331570145,1720522238918,-11354.94033921,0.00023,2]
[331570146,1720522238928,-3902.81447938,0.0002358,2]
[331570147,1720522238937,-2059.337425,0.000239,2]
[331570148,1720522238946,-380.0,0.00024658,2]
[331570149,1720522238955,-200.0,0.00024658,2]
[331570150,1720522238967,-68791.5666017,0.0002499,3]
[331570151,1720522238976,-1851.34621195,0.00025,2]
[331570152,1720522238986,-7427.1094573,0.00025,60]
[331570153,1720522238995,-1025.43091416,0.00025,2]
[331570154,1720522239005,-45100.66836002,0.00025,2]
[331570155,1720522239015,-208.54201475,0.0002509,2]
[331570156,1720522239026,-150.0,0.0002509,2]
[331570157,1720522239036,-150.0,0.0002529,2]
[331570158,1720522239046,-3902.81447938,0.0002542,2]
[331570159,1720522239056,-68791.5666017,0.00025452,3]
[331570160,1720522239066,-620.00006311,0.00025462,2]
[331570161,1720522239077,-620.00120246,0.00025462,2]
[331570162,1720522239092,-100069.52116256,0.00025501,2]
[331570163,1720522239102,-160.66266123,0.00025638,2]
[331570164,1720522239112,-250.0,0.00025838,2]
[331570165,1720522239123,-350.0,0.00026386,2]
[331570167,1720522239133,-7458.94652043,0.0002649,2]
[331570169,1720522239143,-2058.61750007,0.000266,2]
[331570171,1720522239152,-153.0,0.00026603,2]
[331570172,1720522239163,-153.0,0.00026603,2]
[331570174,1720522239175,-153.0,0.00026603,2]
[331570176,1720522239185,-153.0,0.00026603,2]
[331570178,1720522239195,-450.0,0.00026933,2]
[331570180,1720522239204,-167.038957,0.00027123,2]
[331570181,1720522239216,-167.038957,0.00027123,120]
[331570182,1720522239226,-435.4329661,0.00027178,2]
[331570183,1720522239236,-30000.0,0.00027184,2]
[331570184,1720522239245,-750.0,0.00027195,2]
[331570185,1720522239255,-3902.81447938,0.0002726,2]
[331570186,1720522239265,-3000.0,0.000273,2]
[331570187,1720522239276,-3000.0,0.000273,2]
[331570188,1720522239286,-1487.65251089,0.0002731,2]
[331570205,1720522240103,-1512.34748911,0.0002731,2]
[331570206,1720522240113,-3000.0,0.0002731,2]
[331570207,1720522240122,-3000.0,0.0002732,2]
[331570208,1720522240132,-3000.0,0.0002732,2]
[331570209,1720522240142,-3000.0,0.0002733,2]
[331570210,1720522240151,-3000.0,0.0002733,2]
[331570211,1720522240161,-3000.0,0.0002734,2]
[331570212,1720522240172,-3000.0,0.0002734,2]
[331570214,1720522240182,-3000.0,0.0002735,2]
[331570217,1720522240192,-3000.0,0.0002735,2]
[331570218,1720522240202,-3000.0,0.0002736,2]
[331570219,1720522240211,-3000.0,0.0002736,2]
[331570221,1720522240221,-3000.0,0.0002737,2]
[331570223,1720522240231,-3000.0,0.0002737,2]
[331570225,1720522240241,-3000.0,0.0002738,2]
[331570227,1720522240251,-3000.0,0.0002738,2]
[331570228,1720522240261,-3000.0,0.0002739,2]
[331570230,1720522240271,-3000.0,0.0002739,2]
[331570232,1720522240281,-361.6373675,0.00027397,2]
[331570234,1720522240291,-586.04346077,0.00027397,2]
[331570236,1720522240300,-586.04346077,0.00027397,2]
[331570237,1720522240310,-586.04346077,0.00027397,2]
[331570238,1720522240320,-586.04346077,0.00027397,2]
[331570239,1720522240329,-586.04346077,0.00027397,2]
[331570241,1720522240338,-586.04346077,0.00027397,2]
[331570242,1720522240347,-586.04346077,0.00027397,2]
[331570243,1720522240356,-586.04346077,0.00027397,2]
[331570244,1720522240366,-586.04346077,0.00027397,2]
[331570245,1720522240375,-586.04346077,0.00027397,2]
[331570246,1720522240384,-586.04346077,0.00027397,2]
[331570247,1720522240393,-586.04346077,0.00027397,2]
[331570248,1720522240402,-586.04346077,0.00027397,2]
[331570249,1720522240411,-586.04346077,0.00027397,2]
[331570250,1720522240420,-586.04346077,0.00027397,2]
[331570251,1720522240429,-586.04346077,0.00027397,2]
[331570252,1720522240439,-586.04346077,0.00027397,2]
[331570253,1720522240448,-586.04346077,0.00027397,2]
[331570254,1720522240457,-586.04346077,0.00027397,2]
[331570255,1720522240469,-586.04346077,0.00027397,2]
[331570256,1720522240478,-586.04346077,0.00027397,2]
[331570257,1720522240487,-586.04346077,0.00027397,2]
[331570258,1720522240500,-586.04346077,0.00027397,2]
[331570259,1720522240509,-586.04346077,0.00027397,2]
[331570260,1720522240518,-586.04346077,0.00027397,2]
[331570261,1720522240528,-586.04346077,0.00027397,2]
[331570262,1720522240538,-586.04346077,0.00027397,2]
[331570263,1720522240548,-586.04346077,0.00027397,2]
[331570264,1720522240557,-586.04346077,0.00027397,2]
[331570265,1720522240567,-586.04346077,0.00027397,2]
[331570266,1720522240576,-586.04346077,0.00027397,2]
[331570267,1720522240586,-586.04346077,0.00027397,2]
[331570268,1720522240595,-586.04346077,0.00027397,2]
[331570269,1720522240604,-586.04346077,0.00027397,2]
[331570270,1720522240613,-586.04346077,0.00027397,2]
[331570271,1720522240623,-586.04346077,0.00027397,2]
[331570272,1720522240632,-586.04346077,0.00027397,2]
[331570273,1720522240702,-586.04346077,0.00027397,2]
[331570274,1720522240712,-586.04346077,0.00027397,2]
[331570275,1720522240721,-586.04346077,0.00027397,2]
[331570276,1720522240731,-586.04346077,0.00027397,2]
[331570277,1720522240740,-586.04346077,0.00027397,2]
[331570278,1720522240750,-586.04346077,0.00027397,2]
[331570279,1720522240759,-586.04346077,0.00027397,2]
[331570280,1720522240769,-586.04346077,0.00027397,2]
[331570281,1720522240778,-586.04346077,0.00027397,2]
[331570282,1720522240787,-586.04346077,0.00027397,2]
[331570283,1720522240797,-586.04346077,0.00027397,2]
[331570284,1720522240808,-586.04346077,0.00027397,2]
[331570285,1720522240818,-586.04346077,0.00027397,2]
[331570286,1720522240827,-586.04346077,0.00027397,2]
[331570287,1720522240836,-586.04346077,0.00027397,2]
[331570288,1720522240846,-586.04346077,0.00027397,2]
[331570289,1720522240856,-586.04346077,0.00027397,2]
[331570290,1720522240865,-586.04346077,0.00027397,2]
[331570291,1720522240875,-586.04346077,0.00027397,2]
[331570292,1720522240884,-586.04346077,0.00027397,2]
[331570293,1720522240894,-586.04346077,0.00027397,2]
[331570294,1720522240903,-586.04346077,0.00027397,2]
[331570295,1720522240912,-586.04346077,0.00027397,2]
[331570296,1720522240922,-586.04346077,0.00027397,2]
[331570297,1720522240931,-660.87765744,0.00027397,2]
[331570298,1720522240941,-660.87765744,0.00027397,2]
[331570299,1720522240950,-660.87765744,0.00027397,2]
[331570300,1720522240959,-660.87765744,0.00027397,2]
[331570301,1720522240968,-660.87765744,0.00027397,2]
[331570302,1720522240978,-660.87765744,0.00027397,2]
[331570303,1720522240988,-660.87765744,0.00027397,2]
[331570304,1720522240997,-660.87765744,0.00027397,2]
[331570305,1720522241006,-660.87765744,0.00027397,2]
[331570306,1720522241015,-660.87765744,0.00027397,2]
[331570307,1720522241024,-660.87765744,0.00027397,2]
[331570308,1720522241033,-660.87765744,0.00027397,2]
[331570309,1720522241042,-660.87765744,0.00027397,2]
[331570310,1720522241051,-660.87765744,0.00027397,2]
[331570311,1720522241060,-660.87765744,0.00027397,2]
[331570312,1720522241069,-660.87765744,0.00027397,2]
[331570313,1720522241081,-660.87765744,0.00027397,2]
[331570314,1720522241094,-660.87765744,0.00027397,2]
[331570315,1720522241104,-660.87765744,0.00027397,2]
[331570316,1720522241113,-660.87765744,0.00027397,2]
[331570317,1720522241124,-660.87765744,0.00027397,2]
[331570318,1720522241133,-660.87765744,0.00027397,2]
[331570319,1720522241142,-660.87765744,0.00027397,2]
[331570320,1720522241151,-660.87765744,0.00027397,2]
[331570321,1720522241160,-660.87765744,0.00027397,2]
[331570322,1720522241170,-660.87765744,0.00027397,2]
[331570323,1720522241179,-660.87765744,0.00027397,2]
[331570324,1720522241188,-660.87765737,0.00027397,2]
[331570325,1720522241197,-191.0559141,0.00027397,120]
[331570326,1720522241211,-3000.0,0.000274,2]
[331570327,1720522241220,-3000.0,0.000274,2]
[331570328,1720522241238,-3000.0,0.0002741,2]
[331570329,1720522241254,-3000.0,0.0002741,2]
[331570330,1720522241267,-3000.0,0.0002742,2]
[331570331,1720522241283,-3000.0,0.0002742,2]
[331570332,1720522241298,-3000.0,0.0002743,2]
[331570333,1720522241313,-3000.0,0.0002743,2]
[331570334,1720522241331,-3000.0,0.0002744,2]
[331570335,1720522241346,-3000.0,0.0002744,2]
[331570336,1720522241361,-3000.0,0.0002745,2]
[331570337,1720522241374,-3000.0,0.0002745,2]
[331570338,1720522241390,-3000.0,0.0002746,2]
[331570339,1720522241404,-3000.0,0.0002746,2]
[331570340,1720522241415,-3000.0,0.0002747,2]
[331570341,1720522241428,-3000.0,0.0002747,2]
[331570342,1720522241443,-3000.0,0.0002748,2]
[331570343,1720522241458,-3000.0,0.0002748,2]
[331570344,1720522241477,-550.0,0.00027481,2]
[331570345,1720522241493,-3000.0,0.0002749,2]
[331570346,1720522241503,-3000.0,0.0002749,2]
[331570347,1720522241514,-43657.05388,0.000275,2]
[331570348,1720522241527,-3000.0,0.000275,2]
[331570349,1720522241545,-3000.0,0.000275,2]
[331570350,1720522241557,-3000.0,0.0002751,2]
[331570351,1720522241569,-3000.0,0.0002751,2]
[331570352,1720522241583,-3000.0,0.0002752,2]
[331570353,1720522241595,-3000.0,0.0002752,2]
[331570354,1720522241605,-3000.0,0.0002753,2]
[331570355,1720522241617,-3000.0,0.0002753,2]
[331570356,1720522241629,-3000.0,0.0002754,2]
[331570357,1720522241642,-3000.0,0.0002754,2]
[331570358,1720522241653,-3000.0,0.0002755,2]
[331570359,1720522241665,-3000.0,0.0002755,2]
[331570360,1720522241678,-3000.0,0.0002756,2]
[331570361,1720522241689,-3000.0,0.0002756,2]
[331570362,1720522241702,-3000.0,0.0002757,2]
[331570363,1720522241716,-3000.0,0.0002757,2]
[331570364,1720522241729,-3000.0,0.0002758,2]
[331570365,1720522241741,-3000.0,0.0002758,2]
[331570366,1720522241753,-3000.0,0.0002759,2]
[331570367,1720522241766,-3000.0,0.0002759,2]
[331570368,1720522241778,-3000.0,0.000276,2]
[331570369,1720522241792,-3000.0,0.000276,2]
[331570370,1720522241805,-3000.0,0.0002761,2]
[331570371,1720522241818,-3000.0,0.0002761,2]
[331570372,1720522241830,-3000.0,0.0002762,2]
[331570373,1720522241843,-3000.0,0.0002762,2]
[331570374,1720522241857,-3000.0,0.0002763,2]
[331570375,1720522241869,-3000.0,0.0002763,2]
[331570376,1720522241881,-3000.0,0.0002764,2]
[331570377,1720522241894,-3000.0,0.0002764,2]
[331570378,1720522241907,-3027.51034,0.0002765,2]
[331570379,1720522241916,-3000.0,0.0002765,2]
[331570380,1720522242021,-3000.0,0.0002766,2]
[331570381,1720522242037,-3000.0,0.0002767,2]
[331570382,1720522242048,-3000.0,0.0002768,2]
[331570383,1720522242057,-3000.0,0.0002769,2]
[331570384,1720522242067,-3000.0,0.000277,2]
[331570385,1720522242076,-3000.0,0.0002771,2]
[331570386,1720522242091,-3000.0,0.0002772,2]
[331570387,1720522242101,-3000.0,0.0002773,2]
[331570388,1720522242111,-3000.0,0.0002774,2]
[331570389,1720522242120,-3000.0,0.0002775,2]
[331570390,1720522242131,-3000.0,0.0002776,2]
[331570391,1720522242140,-3432.907333,0.0002777,2]
[331570392,1720522242150,-1328.65900423,0.000279,2]
[331570393,1720522242159,-31473.42748963,0.0002799,2]
[331570394,1720522242170,-172.42394717,0.00028,30]
[331570395,1720522242179,-153.0,0.00028,2]
[331570396,1720522242189,-153.0,0.00028,2]
[331570397,1720522242198,-153.0,0.00028,2]
[331570398,1720522242208,-153.0,0.00028,2]
[331570399,1720522242219,-153.0,0.00028,2]
[331570400,1720522242229,-153.0,0.00028,2]
[331570401,1720522242239,-153.0,0.00028,2]
[331570402,1720522242248,-153.0,0.00028,2]
[331570403,1720522242257,-153.0,0.00028,2]
[331570404,1720522242266,-153.0,0.00028,2]
[331570405,1720522242276,-153.0,0.00028,2]
[331570406,1720522242286,-153.0,0.00028,2]
[331570407,1720522242296,-650.0,0.00028029,2]
[331570408,1720522242305,-667.684074,0.0002818,2]
[331570409,1720522242315,-153.0,0.00028493,2]
[331570410,1720522242325,-153.0,0.00028493,2]
[331570411,1720522242335,-153.0,0.00028493,2]
[331570412,1720522242344,-153.0,0.00028493,2]
[331570413,1720522242354,-153.0,0.00028493,2]
[331570414,1720522242363,-153.0,0.00028493,2]
[331570415,1720522242373,-153.0,0.00028493,2]
[331570416,1720522242382,-153.0,0.00028493,2]
[331570417,1720522242392,-153.0,0.00028493,2]
[331570418,1720522242401,-431.2097649,0.00028493,2]
[331570419,1720522242410,-153.0,0.00028493,2]
[331570420,1720522242420,-798.33156433,0.000285,2]
[331570421,1720522242430,-750.0,0.00028577,2]
[331570422,1720522242439,-153.0,0.00028767,2]
[331570423,1720522242449,-153.0,0.00028767,2]
[331570424,1720522242458,-153.0,0.00028767,2]
[331570425,1720522242472,-153.0,0.00028767,2]
[331570426,1720522242482,-153.0,0.00028767,2]
[331570427,1720522242492,-153.0,0.00028767,2]
[331570428,1720522242502,-153.0,0.00028767,2]
[331570429,1720522242511,-153.0,0.00028767,2]
[331570430,1720522242521,-153.0,0.00028767,2]
[331570431,1720522242530,-153.0,0.00028767,2]
[331570432,1720522242541,-153.0,0.00028767,2]
[331570433,1720522242551,-153.0,0.00028767,2]
[331570434,1720522242560,-153.0,0.00028767,2]
[331570435,1720522242570,-153.0,0.00028767,2]
[331570436,1720522242579,-153.0,0.00028767,2]
[331570437,1720522242588,-153.0,0.00028767,2]
[331570438,1720522242598,-153.0,0.00028767,2]
[331570439,1720522242608,-153.0,0.00028767,2]
[331570440,1720522242617,-153.0,0.00028767,2]
[331570441,1720522242626,-189961.79213932,0.0002877,2]
[331570442,1720522242636,-290.926158,0.0002877,7]
[331570443,1720522242645,-151.0,0.0002877,7]
[331570444,1720522242655,-151.0,0.0002877,7]
[331570445,1720522242665,-151.0,0.0002877,7]
[331570446,1720522242675,-151.0,0.0002877,7]
[331570447,1720522242684,-151.0,0.0002877,7]
[331570448,1720522242694,-151.0,0.0002877,7]
[331570449,1720522242703,-151.0,0.0002877,7]
[331570450,1720522242713,-187.074297,0.0002877,7]
[331570451,1720522242723,-151.0,0.0002877,7]
[331570452,1720522242732,-2059.337425,0.000289,2]
[331570453,1720522242742,-153.20766236,0.00028999,2]
[331570454,1720522242752,-849.30884963,0.00029,2]
[331570455,1720522242761,-850.0,0.00029125,2]
[331570456,1720522242771,-950.0,0.00029673,2]
[331570457,1720522242780,-248.18592096,0.000298,120]
[331570458,1720522242790,-11114.08530711,0.00029879,2]
[331570459,1720522242799,-150.0,0.00029999,2]
[331570460,1720522242809,-170.45207762,0.0003,4]
[331570461,1720522242818,-752.61886642,0.0003,2]
[331570462,1720522242827,-304.22675637,0.0003,30]
[331570463,1720522242836,-264.0,0.0003,2]
[331570464,1720522242846,-1050.0,0.00030221,2]
[331570465,1720522242855,-14618.10370698,0.00030727,2]
[331570466,1720522242865,-873.03561247,0.00030769,2]
[331570467,1720522242875,-150.0,0.00030999,2]
[331570468,1720522242885,-500.30375304,0.00032,30]
[331570469,1720522242895,-695.48082098,0.000325,60]
[331570470,1720522242904,-1024.885528,0.00032877,7]
[331570471,1720522242914,-1024.885528,0.00032877,7]
[331570472,1720522242924,-150.0,0.00032877,2]
[331570473,1720522242934,-264.0,0.00033,2]
[331570474,1720522242943,-264.0,0.00033,2]
[331570475,1720522242952,-750.0,0.00033295,2]
[331570476,1720522242962,-435.0,0.00033842,2]
[331570477,1720522242971,-155.1936798,0.00034317,2]
[331570478,1720522242982,-1282.49405735,0.00034728,12]
[331570479,1720522242992,-1000.0,0.000348,3]
[331570480,1720522243001,-5910.9073751,0.00034888,2]
[331570481,1720522243011,-16105.52037114,0.000349,5]
[331570482,1720522243025,-1318.84503557,0.000349,5]
[331570562,1720522298703,294.51676518,0.00014999,2]
[331570563,1720522306456,5341.04343432,0.00014999,2]
[331570570,1720522360060,6983.83406729,0.00014998,2]
[331570571,1720522369553,155.11136962,0.00014999,2]